Workbook

Sheet Auslegungstool
B1: Naam van het Project:
B2: Klant:
B3: Datum:
A5: 1. Ingave van module afmetingen
B7: Hoogte : | E7: =$AJ$36&" :" -> Junctionbox : | F7: Enkel
B8: Breedte : | E8: =$AK$36&" :" -> Verstevigingsrail : | F8: neen
B9: Dikte :
A10: 2. Bepaling van de referenties van de platen, eindklemmen en middenklemmen
C12: =AJ41 -> Portrait | D12: =AJ42 -> Landscape
B13: Ref. Plaat | C13: Keuze van de plaat | D13: Keuze van de plaat
B14: Klemmen | C14: =INDEX(rech_etrier,MATCH($C$13,Ref_plaques,0),MATCH($C$9,Epaisseur_module__mm,0)) ->  | D14: =INDEX(rech_etrier,MATCH($D$13,Ref_plaques,0),MATCH($C$9,Epaisseur_module__mm,0)) -> 
B15: Hoogte ref (mm) | C15: =VLOOKUP($C$13,base_po,7,0) ->  | D15: =VLOOKUP($D$13,base_pa,7,0) -> 
B16: Breedte ref (mm) | C16: =VLOOKUP($C$13,base_po,8,0) ->  | D16: =VLOOKUP($D$13,base_pa,8,0) -> 
B17: Pasvorm (mm) | C17: =IF((C7-C15)>0,MROUND(C7-C15,5),0) ->  | D17: =IF((C8-D15)>0,MROUND(C8-D15,5),0) -> 
B18: Tussenruimte (mm) | C18: =10-(C7-MROUND(C15,5)-C17) ->  | D18: =10-(C8-MROUND(D15,5)-D17) -> 
A20: 3. Bepaling van de veldgrootte
B22: Configuratie | C22: Lijnen | D22: Kolommen
B23: Portrait
B25: Veldgrootte
D26: Hoogte (m)
B27: Alleen platen (A+B) | D27: =((MROUND(HLOOKUP($B$23,données_plaques,4,0),5)+HLOOKUP($B$23,données_plaques,6,0)+10)*$C$23+(160-HLOOKUP($B$23,données_plaques,6,0)))/1000 -> 
B28: Gootaansluiting (A+B+C+D) | D28: =D27+0.15+0.05 -> 
B29: Beneden dakverbinding (A+B+C+D+E) | D29: =D28+0.1 -> 
D30: Lengte (m)
B31: Alleen platen (≈F) | D31: =((HLOOKUP($B$23,données_plaques,5,0)+36.5)*$D$23+30)/1000 -> 
B32: Gootstukken zijkant (F+2G) | D32: =((HLOOKUP($B$23,données_plaques,5,0)+36.5)*$D$23+165*2)/1000 -> 
E35: -50 | F35: 100 | G35: -5 | H35: 0 | N35: Etriers
D36: Référence | E36: Tolérances dimensionnelles | J36: Dimensions de référence de la plaque GSE | N36: Epaisseur module (mm) | AJ36: Junctionbox | AK36: Verstevigingsrail
A37: Base Plaque | D37: PLAQUE | E37: HAUTEUR MINIMUM | F37: HAUTEUR MAXIMUM | G37: LARGEUR MINIMUM | H37: LARGEUR MAXIMUM | J37: Hauteur ref | K37: Larg ref | N37: 30 | O37: 31 | P37: 32 | Q37: 33 | R37: 34 | S37: 35 | T37: 36 | U37: 37 | V37: 38 | W37: 39 | X37: 40 | Y37: 41 | Z37: 42 | AA37: 43 | AB37: 44 | AC37: 45 | AD37: 46 | AE37: 47 | AF37: 48 | AG37: 49 | AH37: 50 | AJ37: Enkel | AK37: ja
B38: ="OK"&IF(C38="faux",0,COUNTIF($C$38:C38,C38)) -> OK0 | C38: =IF($F$7=$AJ$38,"FAUX",IF(AND($C$7>=E38,$C$7<=F38,$C$8>=G38,$C$8<=H38,$C$9>=35),"OK","FAUX")) -> FAUX | D38: 1559 / 1046 | E38: =$J38+E$35 -> 1525 | F38: =$J38+F$35 -> 1675 | G38: =$K38+G$35 -> 1041 | H38: =$K38+H$35 -> 1046 | J38: 1575 | K38: 1046 | L38: PORTRAIT | S38: H16 | T38: H16 | U38: H16 | V38: H19 | W38: H19 | X38: H21 | Y38: H21 | Z38: H23 | AA38: H23 | AB38: H23 | AC38: H26 | AD38: H26 | AE38: H27 | AF38: H27 | AH38: H31 | AJ38: Dubbele | AK38: neen
B39: ="OK"&IF(C39="faux",0,COUNTIF($C$38:C39,C39)) -> OK0 | C39: FAUX | D39: 1575 / 1053 | E39: =$J39+E$35 -> 1525 | F39: =$J39+F$35 -> 1675 | G39: =$K39+G$35 -> 1048 | H39: =$K39+H$35 -> 1053 | J39: 1575 | K39: 1053 | S39: H16 | T39: H16 | U39: H16 | V39: H19 | W39: H19 | X39: H21 | Y39: H21 | Z39: H23 | AA39: H23 | AB39: H23 | AC39: H26 | AD39: H26 | AE39: H27 | AF39: H27 | AH39: H31
B40: ="OK"&IF(C40="faux",0,COUNTIF($C$38:C40,C40)) -> OK0 | C40: FAUX | D40: 1575 / 1082 | E40: 1525 | F40: 1675 | G40: 1077 | H40: =$K40+H$35 -> 1082 | J40: 1575 | K40: 1082 | S40: H16 | T40: H16 | U40: H16 | V40: H19 | W40: H19 | X40: H21 | Y40: H21 | Z40: H23 | AA40: H23 | AB40: H23 | AC40: H26 | AD40: H26 | AE40: H27 | AF40: H27 | AH40: H31
B41: ="OK"&IF(C41="faux",0,COUNTIF($C$38:C41,C41)) -> OK0 | C41: FAUX | D41: 1580 / 808 | E41: 1530 | F41: 1680 | G41: 803 | H41: 808 | J41: 1580 | K41: 808 | S41: H16 | T41: H16 | U41: H16 | V41: H19 | W41: H19 | X41: H21 | Y41: H21 | Z41: H23 | AA41: H23 | AB41: H23 | AC41: H26 | AD41: H26 | AE41: H27 | AF41: H27 | AH41: H31 | AJ41: Portrait
B42: ="OK"&IF(C42="faux",0,COUNTIF($C$38:C42,C42)) -> OK0 | C42: FAUX | D42: 1640 / 992 | E42: 1590 | F42: 1740 | G42: 987 | H42: 992 | J42: 1640 | K42: 992 | S42: H16 | T42: H16 | U42: H16 | V42: H19 | W42: H19 | X42: H21 | Y42: H21 | Z42: H23 | AA42: H23 | AB42: H23 | AC42: H26 | AD42: H26 | AE42: H27 | AF42: H27 | AH42: H31 | AJ42: Landscape
B43: ="OK"&IF(C43="faux",0,COUNTIF($C$38:C43,C43)) -> OK0 | C43: FAUX | D43: 1640 / 1001 | E43: 1590 | F43: 1740 | G43: 996 | H43: 1001 | J43: 1640 | K43: 1001 | S43: H16 | T43: H16 | U43: H16 | V43: H19 | W43: H19 | X43: H21 | Y43: H21 | Z43: H23 | AA43: H23 | AB43: H23 | AC43: H26 | AD43: H26 | AE43: H27 | AF43: H27 | AH43: H31
B44: ="OK"&IF(C44="faux",0,COUNTIF($C$38:C44,C44)) -> OK0 | C44: =IF($F$7=$AJ$38,"FAUX",IF(AND($C$7>=E44,$C$7<=F44,$C$8>=G44,$C$8<=H44,$C$9>=32),"OK","FAUX")) -> FAUX | D44: 1640 / 1001 P33 | E44: 1590 | F44: 1740 | G44: 996 | H44: 1001 | J44: 1640 | K44: 1001 | P44: H16 | Q44: H16 | R44: H16 | S44: H19 | T44: H19 | U44: H21 | V44: H21 | W44: H23 | X44: H23 | Y44: H23 | Z44: H26 | AA44: H26 | AB44: H27 | AC44: H27 | AE44: H31 | AF44: H31 | AG44: H31
B45: ="OK"&IF(C45="faux",0,COUNTIF($C$38:C45,C45)) -> OK0 | C45: =IF($F$7=$AJ$38,"FAUX",IF(AND($C$7>=E45,$C$7<=F45,$C$8>=G45,$C$8<=H45,$C$9>=35),"OK","FAUX")) -> FAUX | D45: 1686 / 1016 | E45: 1635 | F45: =$J45+F$35-30 -> 1755 | G45: 1011 | H45: 1016 | J45: 1685 | K45: 1016 | S45: H16 | T45: H16 | U45: H16 | V45: H19 | W45: H19 | X45: H21 | Y45: H21 | Z45: H23 | AA45: H23 | AB45: H23 | AC45: H26 | AD45: H26 | AE45: H27 | AF45: H27 | AH45: H31
B46: ="OK"&IF(C46="faux",0,COUNTIF($C$38:C46,C46)) -> OK0 | C46: =IF(AND($C$7>=E46,$C$7<=F46,$C$8>=G46,$C$8<=H46,$C$9>=30),"OK","FAUX") -> FAUX | D46: 1710_995 | E46: 1660 | F46: =$J46+F$35-30 -> 1780 | G46: =$K46+G$35 -> 990 | H46: 995 | J46: 1710 | K46: 995 | N46: H16 | O46: H16 | P46: H16 | Q46: H19 | R46: H19 | S46: H21 | T46: H21 | U46: H23 | V46: H23 | W46: H23 | X46: H26 | Y46: H26 | Z46: H27 | AA46: H27 | AC46: H31 | AD46: H31 | AE46: H31
B47: ="OK"&IF(C47="faux",0,COUNTIF($C$38:C47,C47)) -> OK0 | C47: =IF(AND($C$7>=E47,$C$7<=F47,$C$8>=G47,$C$8<=H47,$C$9>=30),"OK","FAUX") -> FAUX | D47: 1710_1000 | E47: 1660 | F47: 1780 | G47: =$K47+G$35 -> 995 | H47: 1000 | J47: 1710 | K47: 1000 | N47: H16 | O47: H16 | P47: H16 | Q47: H19 | R47: H19 | S47: H21 | T47: H21 | U47: H23 | V47: H23 | W47: H23 | X47: H26 | Y47: H26 | Z47: H27 | AA47: H27 | AC47: H31 | AD47: H31 | AE47: H31
B48: ="OK"&IF(C48="faux",0,COUNTIF($C$38:C48,C48)) -> OK0 | C48: =IF(AND($C$7>=E48,$C$7<=F48,$C$8>=G48,$C$8<=H48,$C$9>=30),"OK","FAUX") -> FAUX | D48: 1710_1005 | E48: 1660 | F48: 1780 | G48: =$K48+G$35 -> 1000 | H48: 1005 | J48: 1710 | K48: 1005 | N48: H16 | O48: H16 | P48: H16 | Q48: H19 | R48: H19 | S48: H21 | T48: H21 | U48: H23 | V48: H23 | W48: H23 | X48: H26 | Y48: H26 | Z48: H27 | AA48: H27 | AC48: H31 | AD48: H31 | AE48: H31
B49: ="OK"&IF(C49="faux",0,COUNTIF($C$38:C49,C49)) -> OK0 | C49: FAUX | D49: 1710_1010 | E49: 1660 | F49: 1780 | G49: 1005 | H49: 1010 | J49: 1710 | K49: 1010 | N49: H16 | O49: H16 | P49: H16 | Q49: H19 | R49: H19 | S49: H21 | T49: H21 | U49: H23 | V49: H23 | W49: H23 | X49: H26 | Y49: H26 | Z49: H27 | AA49: H27 | AC49: H31 | AD49: H31 | AE49: H31
B50: ="OK"&IF(C50="faux",0,COUNTIF($C$38:C50,C50)) -> OK0 | C50: FAUX | D50: 1710_1020 | E50: 1660 | F50: 1780 | G50: 1015 | H50: 1020 | J50: 1710 | K50: 1020 | N50: H16 | O50: H16 | P50: H16 | Q50: H19 | R50: H19 | S50: H21 | T50: H21 | U50: H23 | V50: H23 | W50: H23 | X50: H26 | Y50: H26 | Z50: H27 | AA50: H27 | AC50: H31 | AD50: H31 | AE50: H31
B51: ="OK"&IF(C51="faux",0,COUNTIF($C$38:C51,C51)) -> OK0 | C51: FAUX | D51: 1710_1025 | E51: 1660 | F51: 1780 | G51: 1020 | H51: 1025 | J51: 1710 | K51: 1025 | N51: H16 | O51: H16 | P51: H16 | Q51: H19 | R51: H19 | S51: H21 | T51: H21 | U51: H23 | V51: H23 | W51: H23 | X51: H26 | Y51: H26 | Z51: H27 | AA51: H27 | AC51: H31 | AD51: H31 | AE51: H31
B52: ="OK"&IF(C52="faux",0,COUNTIF($C$38:C52,C52)) -> OK0 | C52: FAUX | D52: 1710_1030 | E52: 1660 | F52: 1780 | G52: 1025 | H52: 1030 | J52: 1710 | K52: 1030 | N52: H16 | O52: H16 | P52: H16 | Q52: H19 | R52: H19 | S52: H21 | T52: H21 | U52: H23 | V52: H23 | W52: H23 | X52: H26 | Y52: H26 | Z52: H27 | AA52: H27 | AC52: H31 | AD52: H31 | AE52: H31
B53: ="OK"&IF(C53="faux",0,COUNTIF($C$38:C53,C53)) -> OK0 | C53: FAUX | D53: 1710_1040 | E53: 1660 | F53: 1780 | G53: 1035 | H53: 1040 | J53: 1710 | K53: 1040 | N53: H16 | O53: H16 | P53: H16 | Q53: H19 | R53: H19 | S53: H21 | T53: H21 | U53: H23 | V53: H23 | W53: H23 | X53: H26 | Y53: H26 | Z53: H27 | AA53: H27 | AC53: H31 | AD53: H31 | AE53: H31
B54: ="OK"&IF(C54="faux",0,COUNTIF($C$38:C54,C54)) -> OK0 | C54: =IF(AND($C$7>=E54,$C$7<=F54,$C$8>=G54,$C$8<=H54,$C$9>=30),"OK","FAUX") -> FAUX | D54: 1710_1045 | E54: 1660 | F54: 1780 | G54: 1040 | H54: 1045 | J54: 1710 | K54: 1045 | N54: H16 | O54: H16 | P54: H16 | Q54: H19 | R54: H19 | S54: H21 | T54: H21 | U54: H23 | V54: H23 | W54: H23 | X54: H26 | Y54: H26 | Z54: H27 | AA54: H27 | AC54: H31 | AD54: H31 | AE54: H31
B55: ="OK"&IF(C55="faux",0,COUNTIF($C$38:C55,C55)) -> OK0 | C55: FAUX | D55: 1710_1050 | E55: 1660 | F55: 1780 | G55: 1045 | H55: 1050 | J55: 1710 | K55: 1050 | N55: H16 | O55: H16 | P55: H16 | Q55: H19 | R55: H19 | S55: H21 | T55: H21 | U55: H23 | V55: H23 | W55: H23 | X55: H26 | Y55: H26 | Z55: H27 | AA55: H27 | AC55: H31 | AD55: H31 | AE55: H31
B56: ="OK"&IF(C56="faux",0,COUNTIF($C$38:C56,C56)) -> OK0 | C56: =IF(AND($C$7>=E56,$C$7<=F56,$C$8>=G56,$C$8<=H56,$C$9>=30),"OK","FAUX") -> FAUX | D56: 1710_1055 | E56: 1660 | F56: 1780 | G56: 1050 | H56: 1055 | J56: 1710 | K56: 1055 | N56: H16 | O56: H16 | P56: H16 | Q56: H19 | R56: H19 | S56: H21 | T56: H21 | U56: H23 | V56: H23 | W56: H23 | X56: H26 | Y56: H26 | Z56: H27 | AA56: H27 | AC56: H31 | AD56: H31 | AE56: H31
B57: ="OK"&IF(C57="faux",0,COUNTIF($C$38:C57,C57)) -> OK0 | D57: 1710_1060 | E57: 1660 | F57: 1780 | G57: 1055 | H57: 1060 | J57: 1710 | K57: 1060 | N57: H16 | O57: H16 | P57: H16 | Q57: H19 | R57: H19 | S57: H21 | T57: H21 | U57: H23 | V57: H23 | W57: H23 | X57: H26 | Y57: H26 | Z57: H27 | AA57: H27 | AC57: H31 | AD57: H31 | AE57: H31
B58: ="OK"&IF(C58="faux",0,COUNTIF($C$58:C58,C58)) -> OK0 | C58: =IF($F$8=$AK$37,"FAUX",IF($F$7=$AJ$38,"FAUX",IF(AND($C$8>=E58,$C$8<=F58,$C$7>=G58,$C$7<=H58,$C$9>=35),"OK","FAUX"))) -> FAUX | D58: 1559 / 1046 | E58: 1032 | F58: 1182 | G58: =$K58+G$35 -> 1554 | H58: 1559 | J58: 1082 | K58: 1559 | L58: PAYSAGE | S58: H16 | T58: H16 | U58: H16 | V58: H19 | W58: H19 | X58: H21 | Y58: H21 | Z58: H23 | AA58: H23 | AB58: H23 | AC58: H26 | AD58: H26 | AE58: H27 | AF58: H27 | AH58: H31
B59: ="OK"&IF(C59="faux",0,COUNTIF($C$58:C59,C59)) -> OK0 | C59: FAUX | D59: 1575 / 1082 | E59: 1032 | F59: 1182 | G59: 1570 | H59: 1575 | J59: 1082 | K59: 1575 | S59: H16 | T59: H16 | U59: H16 | V59: H19 | W59: H19 | X59: H21 | Y59: H21 | Z59: H23 | AA59: H23 | AB59: H23 | AC59: H26 | AD59: H26 | AE59: H27 | AF59: H27 | AH59: H31
B60: ="OK"&IF(C60="faux",0,COUNTIF($C$58:C60,C60)) -> OK0 | C60: FAUX | D60: 1580 / 808 | E60: 758 | F60: 908 | G60: 1575 | H60: 1580 | J60: 808 | K60: 1580 | S60: H16 | T60: H16 | U60: H16 | V60: H19 | W60: H19 | X60: H21 | Y60: H21 | Z60: H23 | AA60: H23 | AB60: H23 | AC60: H26 | AD60: H26 | AE60: H27 | AF60: H27 | AH60: H31
B61: ="OK"&IF(C61="faux",0,COUNTIF($C$58:C61,C61)) -> OK0 | C61: FAUX | D61: 1640 / 992 | E61: 942 | F61: 1092 | G61: 1635 | H61: 1640 | J61: 992 | K61: 1640 | S61: H16 | T61: H16 | U61: H16 | V61: H19 | W61: H19 | X61: H21 | Y61: H21 | Z61: H23 | AA61: H23 | AB61: H23 | AC61: H26 | AD61: H26 | AE61: H27 | AF61: H27 | AH61: H31
B62: ="OK"&IF(C62="faux",0,COUNTIF($C$58:C62,C62)) -> OK0 | C62: FAUX | D62: 1650 / 992 | E62: 942 | F62: 1092 | G62: 1645 | H62: 1650 | J62: 992 | K62: 1650 | S62: H16 | T62: H16 | U62: H16 | V62: H19 | W62: H19 | X62: H21 | Y62: H21 | Z62: H23 | AA62: H23 | AB62: H23 | AC62: H26 | AD62: H26 | AE62: H27 | AF62: H27 | AH62: H31
B63: ="OK"&IF(C63="faux",0,COUNTIF($C$58:C63,C63)) -> OK0 | C63: FAUX | D63: 1660 / 992 | E63: 942 | F63: 1092 | G63: 1655 | H63: 1660 | J63: 992 | K63: 1660 | S63: H16 | T63: H16 | U63: H16 | V63: H19 | W63: H19 | X63: H21 | Y63: H21 | Z63: H23 | AA63: H23 | AB63: H23 | AC63: H26 | AD63: H26 | AE63: H27 | AF63: H27 | AH63: H31
B64: ="OK"&IF(C64="faux",0,COUNTIF($C$58:C64,C64)) -> OK0 | C64: FAUX | D64: 1670 / 992 | E64: 942 | F64: 1092 | G64: 1665 | H64: 1670 | J64: 992 | K64: 1670 | S64: H16 | T64: H16 | U64: H16 | V64: H19 | W64: H19 | X64: H21 | Y64: H21 | Z64: H23 | AA64: H23 | AB64: H23 | AC64: H26 | AD64: H26 | AE64: H27 | AF64: H27 | AH64: H31
B65: ="OK"&IF(C65="faux",0,COUNTIF($C$58:C65,C65)) -> OK0 | C65: =IF($F$8=$AK$37,"FAUX",IF($F$7=$AJ$38,"FAUX",IF(AND($C$8>=E65,$C$8<=F65,$C$7>=G65,$C$7<=H65,$C$9>=32),"OK","FAUX"))) -> FAUX | D65: 1675 / 992 P33 | E65: 942 | F65: 1092 | G65: 1670 | H65: 1675 | J65: 992 | K65: 1675 | P65: H16 | Q65: H16 | R65: H16 | S65: H19 | T65: H19 | U65: H21 | V65: H21 | W65: H23 | X65: H23 | Y65: H23 | Z65: H26 | AA65: H26 | AB65: H27 | AC65: H27 | AE65: H31 | AF65: H31 | AG65: H31
B66: ="OK"&IF(C66="faux",0,COUNTIF($C$58:C66,C66)) -> OK0 | C66: =IF($F$8=$AK$37,"FAUX",IF($F$7=$AJ$38,"FAUX",IF(AND($C$8>=E66,$C$8<=F66,$C$7>=G66,$C$7<=H66,$C$9>=35),"OK","FAUX"))) -> FAUX | D66: 1680 / 992 | E66: 942 | F66: 1092 | G66: 1675 | H66: 1680 | J66: 992 | K66: 1680 | S66: H16 | T66: H16 | U66: H16 | V66: H19 | W66: H19 | X66: H21 | Y66: H21 | Z66: H23 | AA66: H23 | AB66: H23 | AC66: H26 | AD66: H26 | AE66: H27 | AF66: H27 | AH66: H31
B67: ="OK"&IF(C67="faux",0,COUNTIF($C$58:C67,C67)) -> OK0 | C67: =IF($F$8=$AK$37,"FAUX",IF($F$7=$AJ$38,"FAUX",IF(AND($C$8>=E67,$C$8<=F67,$C$7>=G67,$C$7<=H67,$C$9>=35),"OK","FAUX"))) -> FAUX | D67: 1686 / 1016 | E67: 942 | F67: 1092 | G67: 1681 | H67: 1686 | J67: 992 | K67: 1686 | S67: H16 | T67: H16 | U67: H16 | V67: H19 | W67: H19 | X67: H21 | Y67: H21 | Z67: H23 | AA67: H23 | AB67: H23 | AC67: H26 | AD67: H26 | AE67: H27 | AF67: H27 | AH67: H31
B68: ="OK"&IF(C68="faux",0,COUNTIF($C$58:C68,C68)) -> OK0 | C68: =IF($F$8=$AK$37,"FAUX",IF($F$7=$AJ$38,"FAUX",IF(AND($C$8>=E68,$C$8<=F68,$C$7>=G68,$C$7<=H68,$C$9>=35),"OK","FAUX"))) -> FAUX | D68: 1700 / 1016 | E68: 942 | F68: 1092 | G68: 1695 | H68: 1700 | J68: 992 | K68: 1700 | S68: H16 | T68: H16 | U68: H16 | V68: H19 | W68: H19 | X68: H21 | Y68: H21 | Z68: H23 | AA68: H23 | AB68: H23 | AC68: H26 | AD68: H26 | AE68: H27 | AF68: H27 | AH68: H31
B69: ="OK"&IF(C69="faux",0,COUNTIF($C$58:C69,C69)) -> OK0 | C69: =IF($F$8=$AK$37,"FAUX",IF(AND($C$8>=E69,$C$8<=F69,$C$7>=G69,$C$7<=H69,$C$9>=30),"OK","FAUX")) -> FAUX | D69: 1665_1020 | E69: 970 | F69: 1120 | G69: 1660 | H69: 1665 | J69: 1020 | K69: 1665 | N69: H16 | O69: H16 | P69: H16 | Q69: H19 | R69: H19 | S69: H21 | T69: H21 | U69: H23 | V69: H23 | W69: H23 | X69: H26 | Y69: H26 | Z69: H27 | AA69: H27 | AC69: H31 | AD69: H31 | AE69: H31
B70: ="OK"&IF(C70="faux",0,COUNTIF($C$58:C70,C70)) -> OK0 | C70: FAUX | D70: 1675_1020 | E70: 970 | F70: 1120 | G70: 1670 | H70: 1675 | J70: 1020 | K70: 1675 | N70: H16 | O70: H16 | P70: H16 | Q70: H19 | R70: H19 | S70: H21 | T70: H21 | U70: H23 | V70: H23 | W70: H23 | X70: H26 | Y70: H26 | Z70: H27 | AA70: H27 | AC70: H31 | AD70: H31 | AE70: H31
B71: ="OK"&IF(C71="faux",0,COUNTIF($C$58:C71,C71)) -> OK0 | C71: FAUX | D71: 1680_1020 | E71: 970 | F71: 1120 | G71: 1675 | H71: 1680 | J71: 1020 | K71: 1680 | N71: H16 | O71: H16 | P71: H16 | Q71: H19 | R71: H19 | S71: H21 | T71: H21 | U71: H23 | V71: H23 | W71: H23 | X71: H26 | Y71: H26 | Z71: H27 | AA71: H27 | AC71: H31 | AD71: H31 | AE71: H31
B72: ="OK"&IF(C72="faux",0,COUNTIF($C$58:C72,C72)) -> OK0 | C72: FAUX | D72: 1685_1020 | E72: 970 | F72: 1120 | G72: 1680 | H72: 1685 | J72: 1020 | K72: 1685 | N72: H16 | O72: H16 | P72: H16 | Q72: H19 | R72: H19 | S72: H21 | T72: H21 | U72: H23 | V72: H23 | W72: H23 | X72: H26 | Y72: H26 | Z72: H27 | AA72: H27 | AC72: H31 | AD72: H31 | AE72: H31
B73: ="OK"&IF(C73="faux",0,COUNTIF($C$58:C73,C73)) -> OK0 | C73: =IF($F$8=$AK$37,"FAUX",IF(AND($C$8>=E73,$C$8<=F73,$C$7>=G73,$C$7<=H73,$C$9>=30),"OK","FAUX")) -> FAUX | D73: 1690_1020 | E73: 970 | F73: 1120 | G73: 1685 | H73: 1690 | J73: 1020 | K73: 1690 | N73: H16 | O73: H16 | P73: H16 | Q73: H19 | R73: H19 | S73: H21 | T73: H21 | U73: H23 | V73: H23 | W73: H23 | X73: H26 | Y73: H26 | Z73: H27 | AA73: H27 | AC73: H31 | AD73: H31 | AE73: H31
B74: ="OK"&IF(C74="faux",0,COUNTIF($C$58:C74,C74)) -> OK0 | C74: FAUX | D74: 1695_1020 | E74: 970 | F74: 1120 | G74: 1690 | H74: 1695 | J74: 1020 | K74: 1695 | N74: H16 | O74: H16 | P74: H16 | Q74: H19 | R74: H19 | S74: H21 | T74: H21 | U74: H23 | V74: H23 | W74: H23 | X74: H26 | Y74: H26 | Z74: H27 | AA74: H27 | AC74: H31 | AD74: H31 | AE74: H31
B75: ="OK"&IF(C75="faux",0,COUNTIF($C$58:C75,C75)) -> OK0 | C75: FAUX | D75: 1700_1020 | E75: 970 | F75: 1120 | G75: 1695 | H75: 1700 | J75: 1020 | K75: 1700 | N75: H16 | O75: H16 | P75: H16 | Q75: H19 | R75: H19 | S75: H21 | T75: H21 | U75: H23 | V75: H23 | W75: H23 | X75: H26 | Y75: H26 | Z75: H27 | AA75: H27 | AC75: H31 | AD75: H31 | AE75: H31
B76: ="OK"&IF(C76="faux",0,COUNTIF($C$58:C76,C76)) -> OK0 | C76: FAUX | D76: 1705_1020 | E76: 970 | F76: 1120 | G76: 1700 | H76: 1705 | J76: 1020 | K76: 1705 | N76: H16 | O76: H16 | P76: H16 | Q76: H19 | R76: H19 | S76: H21 | T76: H21 | U76: H23 | V76: H23 | W76: H23 | X76: H26 | Y76: H26 | Z76: H27 | AA76: H27 | AC76: H31 | AD76: H31 | AE76: H31
B77: ="OK"&IF(C77="faux",0,COUNTIF($C$58:C77,C77)) -> OK0 | C77: FAUX | D77: 1720_1020 | E77: 970 | F77: 1120 | G77: 1715 | H77: 1720 | J77: 1020 | K77: 1720 | N77: H16 | O77: H16 | P77: H16 | Q77: H19 | R77: H19 | S77: H21 | T77: H21 | U77: H23 | V77: H23 | W77: H23 | X77: H26 | Y77: H26 | Z77: H27 | AA77: H27 | AC77: H31 | AD77: H31 | AE77: H31
B78: ="OK"&IF(C78="faux",0,COUNTIF($C$58:C78,C78)) -> OK0 | C78: FAUX | D78: 1740_1020 | E78: 970 | F78: 1120 | G78: 1735 | H78: 1740 | J78: 1020 | K78: 1740 | N78: H16 | O78: H16 | P78: H16 | Q78: H19 | R78: H19 | S78: H21 | T78: H21 | U78: H23 | V78: H23 | W78: H23 | X78: H26 | Y78: H26 | Z78: H27 | AA78: H27 | AC78: H31 | AD78: H31 | AE78: H31
C80: Réf. Etriers | D80: Epaisseur Min | E80: Epaisseur Max
A81: Base étriers | B81: =IF(AND($C$9>=D81,$C$9<=E81),"OK","FAUX") -> FAUX | C81: H16 | D81: 31 | E81: 35
B82: FAUX | C82: H19 | D82: 37 | E82: 38
B83: FAUX | C83: H21 | D83: 39 | E83: 40
B84: FAUX | C84: H23 | D84: 41 | E84: 42
B85: FAUX | C85: H27 | D85: 45 | E85: 46
B86: FAUX | C86: H31 | D86: 49 | E86: 50
F88: Portrait | G88: Paysage
E89: 1 | F89: =IFERROR(IF($F$7="OUI",VLOOKUP("OK"&$E89,rech_po_hc,3,0),VLOOKUP("OK"&$E89,rech_po,3,0)),"") ->  | G89: =IFERROR(IF($F$7="OUI",VLOOKUP("OK"&$E89,rech_pa_hc,3,0),VLOOKUP("OK"&$E89,rech_pa,3,0)),"") -> 
E90: 2 | F90: =IFERROR(IF($F$7="OUI",VLOOKUP("OK"&$E90,rech_po_hc,3,0),VLOOKUP("OK"&$E90,rech_po,3,0)),"") ->  | G90: =IFERROR(IF($F$7="OUI",VLOOKUP("OK"&$E90,rech_pa_hc,3,0),VLOOKUP("OK"&$E90,rech_pa,3,0)),"") -> 
E91: 3 | F91: =IFERROR(IF($F$7="OUI",VLOOKUP("OK"&$E91,rech_po_hc,3,0),VLOOKUP("OK"&$E91,rech_po,3,0)),"") ->  | G91: =IFERROR(IF($F$7="OUI",VLOOKUP("OK"&$E91,rech_pa_hc,3,0),VLOOKUP("OK"&$E91,rech_pa,3,0)),"") -> 
E92: 4 | F92: =IFERROR(IF($F$7="OUI",VLOOKUP("OK"&$E92,rech_po_hc,3,0),VLOOKUP("OK"&$E92,rech_po,3,0)),"") ->  | G92: =IFERROR(IF($F$7="OUI",VLOOKUP("OK"&$E92,rech_pa_hc,3,0),VLOOKUP("OK"&$E92,rech_pa,3,0)),"") -> 
E93: 5 | F93: =IFERROR(IF($F$7="OUI",VLOOKUP("OK"&$E93,rech_po_hc,3,0),VLOOKUP("OK"&$E93,rech_po,3,0)),"") ->  | G93: =IFERROR(IF($F$7="OUI",VLOOKUP("OK"&$E93,rech_pa_hc,3,0),VLOOKUP("OK"&$E93,rech_pa,3,0)),"") -> 

Sheet Feuil2 (hidden)
A1: Hochkant | B1: feuil2!C1
A2: Querformat | B2: feuil2!C2
